bitfinex/quotes_ETHUSD_20250722
["timestamp","ask_amount","ask_price","bid_price","bid_amount"]
[1753170947377,2.71696905,3680.6,3680.4,0.4627]
[1753170947574,7.1418955,3680.7,3680.4,0.4627]
[1753170947751,4.425,3680.7,3680.4,0.4627]
[1753170947945,0.2082541,3680.9,3680.5,0.4627]
[1753170948186,0.7584,3681.5,3680.4,2.71704182]
[1753170948187,4.42,3680.8,3680.4,2.71704182]
[1753170948387,2.7165898,3681.1,3680.6,0.4627]
[1753170948549,7.13665485,3681.0,3680.7,0.4627]
[1753170948751,4.42,3680.9,3680.3,0.4627]
[1753170948990,4.419,3680.8,3680.3,3.17981272]
[1753170949160,2.71667075,3681.0,3680.4,0.4627]
[1753170949481,4.418,3680.8,3680.4,0.4627]
[1753170949996,2.71713769,3680.4,3680.2,0.08376688]
[1753170950148,2.71716979,3680.3,3680.2,0.08376688]
[1753170951983,11.56798309,3680.3,3680.2,0.08376688]
[1753170952188,14.56798309,3680.3,3680.2,0.08376688]
[1753170952560,21.43626979,3680.3,3680.2,0.08376688]
[1753170952760,33.48198309,3680.3,3680.2,0.08376688]
[1753170953654,34.98198309,3680.3,3680.2,0.08376688]
[1753170954495,34.97798309,3680.3,3680.2,0.08376688]
[1753170954667,26.12616979,3680.3,3680.2,0.33513961]
[1753170954868,22.08456979,3680.3,3680.2,0.33513961]
[1753170955270,6.47446514,3679.9,3679.8,0.004]
[1753170955808,11.35086514,3679.9,3679.8,0.004]
[1753170956009,11.34986514,3679.9,3679.8,0.004]
[1753170956308,10.89246514,3679.9,3679.8,0.004]
[1753170956898,7.89346514,3679.9,3679.8,0.004]
[1753170957285,3.47446514,3679.9,3679.8,0.004]
[1753170957598,2.71746514,3679.9,3679.8,0.004]
[1753170958094,7.13346514,3679.9,3679.8,0.004]
[1753170958296,21.63346514,3679.9,3679.8,0.004]
[1753170958504,18.915,3679.9,3679.8,0.004]
[1753170958667,4.414,3679.9,3679.8,0.004]
[1753170958877,7.13146514,3679.9,3679.8,0.004]
[1753170959412,8.63146514,3679.9,3679.8,0.004]
[1753170959610,23.13146514,3679.9,3679.8,0.004]
[1753170960123,26.92266514,3679.9,3679.8,1e-08]
[1753170960313,27.38106514,3679.9,3679.8,1e-08]
[1753170960893,22.50666514,3679.9,3679.8,1e-08]
[1753170961083,26.92266514,3679.9,3679.8,1e-08]
[1753170961280,22.50666514,3679.9,3679.8,1e-08]
[1753170961612,26.92266514,3679.9,3679.8,1e-08]
[1753170962280,27.58617,3679.9,3679.8,1e-08]
[1753170962642,27.12777,3679.9,3679.8,1e-08]
[1753170962979,27.12577,3679.9,3679.8,1e-08]
[1753170963279,19.71177,3679.9,3679.8,1e-08]
[1753170963480,24.12577,3679.9,3679.8,1e-08]
[1753170963704,24.12477,3679.9,3679.8,1e-08]
[1753170964089,19.71177,3679.9,3679.8,1e-08]
[1753170964298,24.12277,3679.9,3679.8,1e-08]
[1753170964686,23.33257,3679.9,3679.8,1e-08]
[1753170964881,18.92257,3679.9,3679.8,1e-08]
[1753170965087,23.33157,3679.9,3679.8,1e-08]
[1753170965605,23.33057,3679.9,3679.8,1e-08]
[1753170966707,18.92257,3679.9,3679.8,1e-08]
[1753170966902,23.32957,3679.9,3679.8,0.43820001]
[1753170967104,23.32957,3679.9,3679.8,1e-08]
[1753170967327,23.32957,3679.9,3679.8,0.25188896]
[1753170967758,8.82957,3679.9,3679.8,0.25188896]
[1753170967960,9.63577,3679.9,3679.8,0.25188896]
[1753170968250,27.13577,3679.9,3679.8,1e-08]
[1753170969419,22.72877,3679.9,3679.8,1e-08]
[1753170969622,27.13577,3679.9,3679.8,1e-08]
[1753170969923,26.32957,3679.9,3679.8,1e-08]
[1753170971206,26.32957,3679.9,3679.6,0.001]
[1753170971207,2.71761284,3679.7,3679.6,1e-08]
[1753170971413,7.90741284,3679.7,3679.6,1e-08]
[1753170972853,7.90741284,3679.7,3678.2,0.1352]
[1753170972854,2.71894287,3677.9,3677.8,3.20475758]
[1753170973008,4.492,3677.9,3677.8,3.64295758]
[1753170973207,7.21094287,3677.9,3677.8,3.64295758]
[1753170973405,14.5,3678.6,3677.8,3.64295758]
[1753170973706,2.71894287,3677.9,3677.8,3.56905334]
[1753170973906,2.85401543,3678.1,3677.8,3.56905334]
[1753170974133,2.85401543,3678.1,3677.9,0.4382]
[1753170974134,2.71886895,3678.0,3677.9,0.4382]
[1753170975209,2.71894287,3677.9,3677.8,3.20475758]
[1753170975438,7.20494287,3677.9,3677.8,3.20475758]
[1753170976052,7.4047513,3677.9,3677.8,3.20475758]
[1753170976415,2.7197563,3676.8,3676.7,1.2409]
[1753170976618,5.14900843,3677.9,3677.0,0.001]
[1753170976619,4.483,3677.1,3677.0,0.001]
[1753170976843,18.983,3677.1,3677.0,0.001]
[1753170977346,14.5,3677.1,3677.0,0.001]
[1753170977567,21.69953441,3677.1,3677.0,0.4392]
[1753170977716,21.69953441,3677.1,3677.0,0.001]
[1753170978729,17.21953441,3677.1,3677.0,0.001]
[1753170978941,21.69753441,3677.1,3677.0,0.001]
[1753170979151,2.72005222,3676.4,3676.3,1.2361]
[1753170979473,7.19805222,3676.4,3676.3,1.2361]
[1753170979624,4.478,3676.4,3676.3,0.4382]
[1753170979821,2.7202742,3676.1,3676.0,1.20000074]
[1753170980161,7.1942742,3676.1,3676.0,1.63820074]
[1753170980332,7.1942742,3676.1,3676.0,1.20000074]
[1753170980921,20.2202742,3676.1,3676.0,1e-08]
[1753170981121,17.2202742,3676.1,3676.0,1e-08]
[1753170981434,21.6932742,3676.1,3676.0,0.43820001]
[1753170981640,21.6932742,3676.1,3676.0,1e-08]
[1753170981950,17.2202742,3676.1,3676.0,1e-08]
[1753170982160,20.2202742,3676.1,3676.0,1e-08]
[1753170982349,7.6317133,3675.2,3673.6,2.72212543]
[1753170982563,8.03591934,3675.1,3673.8,0.4382]
[1753170982751,2.72138464,3674.6,3673.8,0.4382]
[1753170982956,7.6317133,3674.7,3673.8,0.4382]
[1753170982957,2.72190315,3673.9,3673.8,0.4382]
[1753170983261,4.531,3673.9,3673.5,0.4382]
[1753170983435,2.72205133,3673.7,3673.6,0.4382]
[1753170983625,7.25305133,3673.7,3673.6,0.4382]
[1753170983827,2.72205133,3673.7,3673.6,0.4382]
[1753170984237,7.25205133,3673.7,3673.6,0.4382]
[1753170984526,14.5,3674.5,3673.6,0.4382]
[1753170984868,2.72160683,3674.3,3673.7,1.13074366]
[1753170985027,2.72160683,3674.3,3673.8,0.4382]
[1753170985338,14.5,3674.5,3673.8,0.4382]
[1753170985540,0.136,3674.2,3673.8,3.16015713]
[1753170985735,0.136,3674.2,3673.9,0.4382]
[1753170986257,2.72175498,3674.1,3674.0,0.4382]
[1753170986446,4.526,3674.1,3673.1,0.8261]
[1753170986962,2.72233229,3673.4,3673.1,0.8261]
[1753170987165,2.72175498,3674.1,3673.2,0.4382]
[1753170987324,2.72190299,3674.0,3673.3,0.39867846]
[1753170987527,0.99723259,3674.6,3673.1,0.8261]
[1753170987528,4.532,3673.9,3673.4,0.4382]
[1753170987756,2.72174889,3674.2,3673.5,0.4382]
[1753170988145,2.72160083,3674.4,3673.5,0.4382]
[1753170988459,4.53,3674.3,3673.5,0.4382]
[1753170988763,2.72175498,3674.1,3673.5,0.4382]
[1753170988964,4.53,3674.2,3673.1,0.8261]
[1753170989169,2.72195597,3673.9,3673.4,0.4382]
[1753170989339,1.5,3674.1,3673.5,2.72218467]
[1753170989670,14.5,3674.0,3673.4,3.16044707]
[1753170989833,14.5,3674.0,3673.4,0.4382]
[1753170990467,14.5,3674.0,3673.5,2.72218757]
[1753170990674,14.5,3674.0,3673.6,0.75423876]
[1753170990837,14.5,3674.0,3673.7,0.4382]
[1753170991041,14.5,3674.0,3673.8,0.4382]
[1753170991451,19.02,3674.0,3672.4,0.7889]
[1753170991771,2.72205981,3673.7,3673.2,0.7889]
[1753170991975,2.72216244,3673.6,3673.3,0.4382]
[1753170992144,4.52,3673.9,3673.4,0.4382]
[1753170992341,2.72219953,3673.5,3673.4,0.4382]
[1753170992576,2.72234775,3673.3,3673.2,0.7889]
[1753170992871,2.72234775,3673.3,3673.2,1.2271]
[1753170993275,7.24086277,3674.0,3673.2,1.2271]
[1753170993276,2.72212794,3673.6,3673.2,1.2271]
[1753170993577,2.72190552,3673.9,3673.3,0.4382]
[1753170993734,2.72190315,3673.9,3673.3,0.4382]
[1753170994139,4.518,3674.0,3673.3,0.4382]
[1753170994353,2.722036,3673.8,3673.3,0.4382]
[1753170994552,1.5,3673.9,3673.3,0.4382]
[1753170994752,4.22191883,3673.9,3673.3,0.4382]
[1753170994952,4.22191883,3673.9,3673.3,3.16054715]
[1753170995352,4.22191883,3673.9,3673.3,0.4382]
[1753170995559,1.5,3673.9,3673.4,2.72221467]
[1753170995762,1.5,3673.9,3673.5,0.4382]
[1753170996079,1.5,3673.9,3673.6,0.4382]
[1753170996280,1.5,3673.9,3673.7,0.4382]
[1753170996575,0.136,3673.6,3673.2,3.51131349]
[1753170996780,1.5,3673.9,3673.2,1.15363135]
[1753170996982,1.5,3673.9,3673.3,2.72234717]
[1753170997147,4.22191302,3673.9,3673.3,2.72234717]
[1753170997477,14.5,3674.1,3673.4,0.4458]
[1753170997642,2.72182906,3674.0,3673.4,3.16805767]
[1753170997839,14.5,3674.1,3673.6,2.72212543]
[1753170998082,14.5,3674.1,3673.8,0.7775]
[1753170998285,2.72107661,3675.1,3673.9,0.4458]
[1753170998488,0.21040248,3675.2,3674.0,0.7775]
[1753170998779,2.72132354,3674.7,3674.1,0.4458]
[1753170999278,2.72131445,3674.7,3674.1,4.01225437]
[1753170999680,2.72131445,3674.7,3674.1,1.29051795]
[1753171000048,2.72126555,3674.8,3674.1,4.01226368]
[1753171000383,2.72135722,3674.7,3674.1,0.4458]
[1753171000584,2.72125618,3674.8,3674.1,3.16750752]
[1753171000786,2.72121504,3674.9,3674.2,3.16746188]
[1753171000994,0.002,3675.2,3674.6,2.72134077]
[1753171001281,0.002,3675.2,3674.7,0.4458]
[1753171001445,0.002,3675.2,3674.7,3.16708473]
[1753171001645,0.002,3675.2,3674.8,0.4458]
[1753171001846,2.72294211,3675.2,3674.8,0.4458]
[1753171002048,0.002,3675.2,3674.8,0.4458]
[1753171002357,0.002,3675.2,3674.4,0.8278]
[1753171002358,2.72140044,3674.6,3674.4,0.8278]
[1753171002558,2.7214587,3674.5,3674.4,0.8278]
[1753171002944,2.7214587,3674.5,3674.3,0.4458]
[1753171002945,2.72153276,3674.4,3674.3,0.4458]
[1753171003150,2.72153276,3674.4,3670.2,0.14193028]
[1753171003151,14.502,3675.2,3674.2,0.7914]
[1753171003450,2.72150674,3674.5,3674.4,0.4458]
[1753171003649,2.72160683,3674.3,3674.2,0.7914]
[1753171004075,2.72182906,3674.0,3673.9,0.7968]
[1753171004403,2.72166507,3674.3,3673.9,0.7968]
[1753171004697,2.72147548,3674.5,3674.0,0.4458]
[1753171004903,2.72101439,3675.1,3674.1,0.4458]
[1753171005066,2.72124177,3674.8,3674.1,3.16751047]
[1753171005470,2.72124177,3674.8,3674.2,2.72166632]
[1753171005672,2.72117032,3674.9,3674.3,2.72160412]
[1753171005873,2.72117032,3674.9,3674.3,3.16740412]
[1753171006198,14.502,3675.2,3674.5,2.72140924]
[1753171006401,14.502,3675.2,3674.3,0.4458]
[1753171006567,2.72113517,3675.0,3674.4,2.72152255]
[1753171006762,0.136,3674.4,3674.3,0.8104]
[1753171006964,0.136,3674.4,3674.3,3.53200683]
[1753171007400,0.002,3675.2,3674.9,0.8104]
[1753171007610,0.136,3675.0,3674.9,0.8104]
[1753171008408,0.136,3675.0,3674.9,1.2562]
[1753171008773,0.136,3675.0,3674.9,3.97736248]
[1753171010797,0.136,3675.0,3674.9,1.2562]
[1753171011501,0.136,3675.0,3674.9,3.97736248]
[1753171012504,0.136,3675.0,3674.9,1.2562]
[1753171014719,0.136,3675.0,3674.9,5.7302]
[1753171014932,0.136,3675.0,3674.9,5.98424027]
[1753171015237,0.136,3675.0,3674.9,0.25404027]
[1753171015391,2.85708843,3675.0,3674.9,0.25404027]
[1753171016178,3.29698843,3675.0,3674.9,0.25404027]
[1753171016594,12.42870173,3675.0,3674.9,0.25404027]
[1753171016920,13.24790173,3675.0,3674.9,0.25404027]
[1753171017128,13.24790173,3675.0,3673.6,0.7569]
[1753171017129,5.72116248,3674.9,3673.2,1.2483]
[1753171017324,2.72225485,3673.5,3673.3,4.466]
[1753171017492,0.136,3673.3,3673.2,0.8025]
[1753171018240,0.136,3673.3,3673.2,1.2483]
[1753171018935,0.136,3673.3,3673.2,5.2685]
[1753171019152,0.136,3673.3,3673.2,1.2483]
[1753171019461,0.136,3673.3,3673.2,5.7093]
[1753171020537,14.5,3673.6,3673.5,2.72219953]
[1753171020714,0.136,3673.6,3673.5,0.4458]
[1753171021552,0.136,3673.6,3673.5,3.16799953]
[1753171021911,0.136,3673.9,3673.5,0.4458]
[1753171022242,0.136,3673.9,3673.6,4.454]
[1753171022243,2.85792136,3673.9,3673.6,4.454]
[1753171022438,2.72204131,3673.8,3673.7,4.453]
[1753171022640,14.5,3674.3,3673.2,0.8025]
[1753171022641,0.136,3673.5,3673.2,0.8025]
[1753171022841,0.136,3673.5,3673.3,4.8988]
[1753171023060,2.72227364,3673.4,3673.1,0.001]
[1753171023266,2.72242186,3673.2,3673.1,0.001]
[1753171023757,2.39583487,3673.2,3673.1,0.001]
[1753171024354,2.83573487,3673.2,3673.1,0.001]
[1753171024517,2.39583487,3673.2,3673.1,0.001]
[1753171024725,15.2587,3673.5,3673.1,0.001]
[1753171024951,14.5,3673.5,3673.1,0.001]
[1753171025152,2.72234671,3673.4,3673.1,0.001]
[1753171025357,14.5,3673.5,3673.1,0.4468]
[1753171025553,3.44252701,3675.0,3673.1,0.4468]
[1753171025554,0.4399,3674.9,3673.2,1.2454]
[1753171025764,4.461,3674.8,3673.3,0.47302347]
[1753171025925,14.5,3674.7,3673.4,4.86061027]
[1753171026252,14.5,3674.7,3673.1,0.001]
[1753171026253,0.7587,3674.1,3673.1,0.001]
[1753171026449,2.72211544,3673.7,3673.1,0.001]
[1753171026745,2.72218146,3673.6,3673.1,0.001]
[1753171026946,14.5,3674.0,3673.1,0.001]
[1753171027153,2.72214086,3673.6,3673.1,0.001]
[1753171027322,2.72240426,3673.3,3673.1,0.001]
[1753171027527,2.72242186,3673.2,3673.1,0.001]
[1753171027708,2.72234971,3673.3,3673.1,0.001]
[1753171027914,2.72242186,3673.2,3673.1,0.001]
[1753171028317,2.72237523,3673.3,3673.1,0.001]
[1753171028515,2.72242186,3673.2,3673.1,0.001]
[1753171029253,2.72242186,3673.2,3673.1,0.25479911]
[1753171032466,2.72239165,3673.3,3673.1,0.25479911]
[1753171032664,2.72239165,3673.3,3673.2,0.25379911]
[1753171033148,2.72232078,3673.4,3673.2,0.25379911]
[1753171033352,14.5,3673.6,3673.3,0.25379911]
[1753171033531,2.72219953,3673.5,3673.4,0.25379911]
[1753171035518,3.14999953,3673.5,3673.4,0.25379911]
[1753171035717,0.7517,3672.3,3671.6,0.136]
[1753171035948,0.136,3671.6,3671.2,2.72385369]
[1753171036148,0.136,3671.4,3671.2,3.77123099]
[1753171036450,0.136,3671.4,3670.8,3.47753068]
[1753171036751,0.136,3671.1,3670.9,4.449]
[1753171036956,0.136,3671.1,3671.0,3.20819392]
[1753171037254,0.136,3671.9,3671.8,2.72340448]
[1753171037415,0.136,3671.9,3671.7,0.7862]
[1753171037615,0.136,3671.9,3671.8,3.18035988]
[1753171038250,3.51314943,3673.1,3671.8,0.48413459]
[1753171038450,0.136,3672.2,3672.1,2.72323738]
[1753171038655,0.136,3672.2,3672.1,3.18013738]
[1753171039347,0.121,3672.2,3672.1,3.18013738]
[1753171040152,0.121,3672.2,3672.1,7.16923738]
[1753171040322,0.121,3672.2,3672.1,7.62613738]
[1753171040517,0.121,3672.2,3671.7,0.7862]
[1753171040867,2.72265933,3672.9,3672.1,7.62513738]
[1753171041079,2.72279413,3672.7,3672.1,4.9019]
[1753171041271,2.72280668,3672.7,3672.1,4.9019]
[1753171041472,2.72302749,3672.4,3672.1,4.445]
[1753171041679,2.72289137,3672.6,3672.1,4.445]
[1753171041977,0.136,3672.2,3672.1,4.9019]
[1753171042486,0.136,3672.2,3672.1,7.62513738]
[1753171043072,0.136,3672.2,3672.1,4.9019]
[1753171043670,0.136,3672.2,3671.7,0.7862]
[1753171043876,2.72335566,3672.0,3671.8,4.437]
[1753171044070,2.72323386,3672.2,3671.8,4.437]
[1753171044238,0.4278,3672.7,3671.8,4.437]
[1753171044441,0.4278,3672.7,3671.2,0.8053]
[1753171044641,0.7964,3672.6,3671.3,4.442]
[1753171044835,3.51929626,3672.6,3671.4,0.4569]
[1753171045077,2.72335903,3672.0,3671.4,0.4569]
[1753171045277,2.72338685,3671.9,3671.4,0.4569]
[1753171045776,2.72340423,3671.9,3671.4,0.4569]
[1753171045993,2.72294077,3672.5,3671.4,3.18064203]
[1753171046192,2.72309146,3672.3,3671.4,3.18064161]
[1753171046394,0.136,3671.6,3671.4,3.18064161]
[1753171046551,0.136,3671.6,3671.4,3.83892618]
[1753171046747,0.136,3671.6,3671.5,3.18058241]
[1753171046986,2.72299776,3672.5,3671.8,2.72339167]
[1753171047147,7.6317133,3672.5,3671.5,0.02723682]
[1753171047481,2.72381262,3671.4,3670.9,0.8222]
[1753171047682,2.72361676,3671.6,3671.2,4.446]
[1753171047902,3.47403738,3672.1,3671.3,0.4569]
[1753171048098,2.72366036,3671.6,3671.3,4.9019]
[1753171048288,2.72391594,3671.2,3670.9,0.8222]
[1753171048592,0.4278,3672.0,3671.0,5.15892248]
[1753171048795,0.4278,3672.0,3671.1,0.25402248]
[1753171048796,2.72360807,3671.7,3671.1,0.25402248]
[1753171048996,0.7508,3672.1,3671.2,0.71092248]
[1753171049187,2.72352455,3671.8,3671.3,0.25402248]
[1753171049385,0.7508,3672.1,3671.4,0.25402248]
[1753171049590,2.72352047,3671.8,3671.5,0.25402248]
[1753171049796,2.72353405,3671.7,3671.6,0.25402248]
[1753171049981,0.7508,3672.1,3671.6,0.25402248]
[1753171050178,0.7508,3672.1,3671.7,0.25402248]
[1753171050377,0.7508,3672.1,3671.8,0.25402248]
[1753171050566,2.72333478,3672.0,3671.9,0.25402248]
[1753171050766,2.7232483,3672.1,3671.9,0.25402248]
[1753171050990,14.5,3672.2,3672.0,0.25402248]
[1753171051189,14.5,3672.2,3672.1,0.25402248]
[1753171051706,3.54437742,3672.4,3672.1,0.25402248]
[1753171051869,2.72296511,3672.5,3672.2,0.25402248]
[1753171052070,17.22301492,3672.4,3672.3,0.25402248]
[1753171052383,14.5,3672.4,3672.3,0.25402248]
[1753171052700,17.22301492,3672.4,3672.3,0.25402248]
[1753171053067,17.65081492,3672.4,3672.3,0.25402248]
[1753171053606,2.72348191,3671.8,3671.4,1.2627]
[1753171053905,17.65081492,3672.4,3671.5,4.69005443]
[1753171054113,2.72371954,3671.5,3671.3,0.001]
[1753171054303,2.7237566,3671.4,3671.3,4.435]
[1753171054471,2.72357488,3671.7,3671.3,4.68906199]
[1753171054671,0.4278,3672.0,3671.4,0.25406199]
[1753171054672,2.72365154,3671.6,3671.4,0.25406199]
[1753171054903,2.72360823,3671.6,3671.5,0.25406199]
[1753171055402,2.72353432,3671.7,3671.5,0.25406199]
[1753171055699,3.0,3672.3,3671.6,0.71096199]
[1753171055900,2.72327519,3672.1,3671.7,0.25406199]
[1753171056101,14.5,3672.4,3671.8,0.25406199]
[1753171056307,2.72331154,3672.0,3671.9,0.25406199]
[1753171058002,2.72319579,3672.2,3671.9,0.25406199]
[1753171058206,2.72362941,3671.6,3671.4,0.8298]
[1753171058377,2.72362941,3671.6,3671.5,0.25421737]
[1753171061996,2.72355064,3671.7,3671.5,0.25421737]
[1753171062312,2.72353405,3671.7,3671.6,0.25421737]
[1753171063431,4.431,3672.3,3671.6,0.71341737]
[1753171063599,14.5,3672.4,3671.7,0.25421737]
[1753171063801,14.5,3672.4,3671.8,0.25421737]
[1753171064012,14.5,3672.4,3671.9,0.25421737]
[1753171064216,2.72323738,3672.1,3672.0,0.25421737]
[1753171065145,2.7231626,3672.3,3672.0,0.71341737]
[1753171065354,2.72317448,3672.2,3672.1,0.25421737]
[1753171065530,14.5,3672.4,3672.1,0.25421737]
[1753171065852,0.136,3672.1,3671.6,4.8892]
[1753171066050,2.72316322,3672.2,3671.7,0.25441445]
[1753171066243,0.136,3671.8,3671.7,0.8178]
[1753171066535,0.136,3671.8,3671.7,3.79574498]
[1753171066943,0.136,3671.8,3671.7,4.25494498]
[1753171067125,0.136,3671.8,3671.7,1.53141093]
[1753171068429,0.136,3671.8,3671.7,5.19959515]
[1753171068601,4.43,3672.8,3671.7,5.19959515]
[1753171068602,0.136,3672.0,3671.7,5.19959515]
[1753171068936,0.136,3672.0,3671.8,0.71361093]
[1753171069242,0.136,3672.0,3671.9,0.25441093]
[1753171069629,0.136,3672.0,3671.9,0.71361093]
[1753171071116,4.43,3673.3,3671.9,5.14361093]
[1753171071322,0.136,3672.3,3672.0,1.31258758]
[1753171071507,0.136,3672.3,3672.2,2.72316322]
[1753171071702,0.136,3672.3,3672.2,1.05612303]
[1753171071904,2.85908907,3672.3,3672.2,0.25452303]
[1753171073057,0.136,3672.3,3672.2,0.25452303]
[1753171073560,0.136,3672.3,3672.2,0.71372303]
[1753171074061,2.85908907,3672.3,3672.2,4.68452303]
[1753171074359,0.136,3672.3,3672.2,5.14372303]
[1753171075059,0.136,3672.3,3672.2,5.1438913]
[1753171075219,2.85908907,3672.3,3672.2,0.2546913]
[1753171075562,2.85908907,3672.3,3672.2,4.6836913]
[1753171076776,2.85908907,3672.3,3672.2,0.2546913]
[1753171077122,2.72353405,3671.7,3671.2,0.136]
[1753171077329,3.53498241,3671.5,3671.4,0.25470625]
[1753171077843,18.50838241,3671.5,3671.4,0.25470625]
[1753171078933,18.03498241,3671.5,3671.4,0.25470625]
[1753171080660,22.46398241,3671.5,3671.4,0.25470625]
[1753171081432,18.03498241,3671.5,3671.4,0.25470625]
[1753171081666,22.46398241,3671.5,3671.4,0.25470625]
[1753171082024,2.8597566,3671.4,3670.7,4.429]
[1753171082254,3.3331566,3671.4,3671.3,0.25568146]
[1753171083243,0.72100062,3672.8,3671.3,1.49248146]
[1753171083484,2.72368241,3671.5,3671.4,0.25468146]
[1753171083685,3.52828241,3671.5,3671.4,0.25468146]
[1753171083978,4.00168241,3671.5,3671.4,0.25468146]
[1753171084181,8.43068241,3671.5,3671.4,0.25468146]
[1753171084343,22.93068241,3671.5,3671.4,0.25468146]
[1753171084982,25.93068241,3671.5,3671.4,0.25468146]
[1753171085345,2.8597566,3671.4,3671.3,0.001]
[1753171085567,2.8597566,3671.4,3669.8,0.004]
[1753171085568,0.828,3670.7,3669.8,0.004]
[1753171085799,2.72486988,3669.9,3669.8,0.004]
[1753171086000,7.63384703,3669.9,3669.8,0.004]
[1753171086199,25.93406988,3669.9,3669.8,0.004]
[1753171086399,22.93406988,3669.9,3669.8,0.004]
[1753171086725,22.93406988,3669.9,3669.8,0.005]
[1753171087011,6.52311839,3669.7,3669.6,1e-08]
[1753171087166,3.0,3669.5,3667.1,0.7655]
[1753171087367,0.7981,3668.9,3667.2,3.18216425]
[1753171087567,0.7981,3669.7,3667.8,0.7655]
[1753171087774,14.5,3669.6,3668.2,2.72606483]
[1753171087973,2.7253733,3669.3,3668.2,3.18136483]
[1753171088177,2.7253733,3669.3,3668.0,3.49176338]
[1753171088178,2.72553829,3669.0,3667.6,0.7655]
[1753171088411,2.72568687,3668.8,3667.6,0.7655]
[1753171088581,2.72599244,3668.4,3667.6,0.7655]
[1753171088782,14.935,3668.7,3667.0,0.7805]
[1753171088783,0.8261,3668.2,3667.0,0.7805]
[1753171089010,14.5,3668.7,3667.1,0.4553]
[1753171089308,2.72644954,3667.8,3667.1,0.4553]
[1753171089505,4.452,3668.0,3667.0,0.7805]
[1753171089682,0.435,3668.1,3666.7,5.20505455]
[1753171089884,4.453,3668.0,3666.7,7.93228378]
[1753171090094,2.72657987,3667.6,3666.7,7.93228378]
[1753171090303,4.453,3667.5,3666.7,3.92045455]
[1753171090513,0.435,3667.6,3666.7,3.92045455]
[1753171090731,21.67867365,3667.5,3666.7,3.92045455]
[1753171091032,2.72717355,3666.8,3666.7,3.92045455]
[1753171091182,3.16217355,3666.8,3666.7,3.92045455]
[1753171091378,4.451,3666.9,3666.7,3.92045455]
[1753171091690,0.435,3667.3,3666.7,3.92045455]
[1753171092000,18.952,3667.2,3666.7,4.31250001]
[1753171092214,0.20209464,3667.5,3667.4,2.72672738]
[1753171092517,3.55074663,3669.4,3668.3,0.787]
[1753171092676,0.8255,3669.4,3668.3,0.787]
[1753171092882,4.925,3669.3,3667.7,5.2932]
[1753171093106,2.72576312,3668.7,3667.8,0.0272643]
[1753171093317,0.435,3669.2,3667.7,0.8042]
[1753171093544,0.435,3669.2,3667.8,1.0574143]
[1753171093710,2.72583129,3668.7,3667.8,3.75655943]
[1753171093910,4.929,3669.2,3667.8,3.75655943]
[1753171094132,2.72585524,3668.6,3667.9,2.72634308]
[1753171094305,2.72574104,3668.8,3667.9,0.66740446]
[1753171094639,4.928,3669.2,3667.9,0.66740446]
[1753171095143,3.16046401,3669.1,3667.9,0.66740446]
[1753171095463,2.72610691,3668.3,3667.9,0.66740446]
[1753171095758,0.435,3669.1,3668.0,0.59676045]
[1753171095914,2.72599706,3668.4,3667.7,8.02668551]
[1753171096112,0.136,3667.9,3667.8,2.72643001]
[1753171096316,7.21453829,3669.0,3667.8,0.4553]
[1753171096609,0.136,3668.0,3667.8,0.4553]
[1753171096815,0.136,3668.0,3667.9,1.30349869]
[1753171097015,0.136,3668.0,3667.9,4.02985437]
[1753171097240,2.72553829,3669.0,3667.9,1.30349869]
[1753171097451,0.136,3668.0,3667.7,5.3002]
[1753171097653,0.136,3668.0,3667.8,0.4553]
[1753171097811,2.72579218,3668.7,3667.9,0.4553]
[1753171098048,0.63858567,3669.3,3667.7,5.3002]
[1753171098049,0.136,3668.1,3667.7,5.3002]
[1753171098449,0.136,3668.1,3667.8,0.4553]
[1753171098781,0.136,3668.1,3667.9,0.4553]
[1753171099145,2.72573522,3668.8,3668.0,3.18152479]
[1753171099382,0.136,3668.4,3668.0,3.18152479]
[1753171099683,0.136,3668.4,3668.1,1.05968968]
[1753171099984,0.136,3668.4,3668.1,3.78586661]
[1753171100193,0.136,3668.4,3668.3,0.8176]
[1753171100480,2.72606231,3668.3,3667.9,0.822]
[1753171100791,0.136,3668.2,3667.9,5.7663]
[1753171100946,0.136,3668.2,3667.9,6.61608784]
[1753171101672,0.136,3668.2,3667.9,6.16078784]
[1753171101848,0.136,3668.2,3668.0,0.4553]
[1753171102187,0.136,3668.2,3667.9,5.311]
[1753171102489,0.136,3668.0,3667.9,5.307]
[1753171102852,0.136,3668.0,3667.9,5.7623]
[1753171103301,0.136,3668.0,3667.9,5.78956355]
[1753171103782,0.136,3668.0,3667.9,8.51591923]
[1753171104081,0.136,3668.0,3667.9,5.7623]
[1753171104299,0.136,3668.0,3667.9,6.91159106]
[1753171104498,2.72584784,3668.6,3667.9,9.61068319]
[1753171104666,0.136,3668.2,3667.9,1.94402751]
[1753171104852,0.136,3668.2,3668.0,4.9323]
[1753171105354,0.136,3668.5,3668.2,2.7261327]
[1753171105562,2.72544329,3669.2,3668.5,2.72585793]
[1753171105763,0.136,3668.8,3668.6,0.4553]
[1753171105987,0.136,3668.8,3668.7,0.4553]
[1753171106510,0.136,3668.8,3668.5,4.82999579]
[1753171106675,0.136,3668.8,3668.5,5.28529579]
[1753171107006,0.136,3668.8,3668.6,0.4553]
[1753171107192,2.70073757,3668.8,3668.7,0.2534595]
[1753171107360,2.72568687,3668.8,3668.7,0.2534595]
[1753171107565,0.136,3668.8,3668.7,0.7087595]
[1753171107760,0.136,3668.8,3668.7,0.2534595]
[1753171108074,2.86168687,3668.8,3668.7,0.2534595]
[1753171108476,2.72576116,3668.7,3668.6,4.471]
[1753171108799,0.136,3668.8,3668.6,5.17994709]
[1753171108970,2.72514296,3669.6,3668.7,0.70894709]
[1753171109169,2.72514296,3669.6,3668.8,0.25364709]
[1753171109170,0.136,3668.9,3668.8,0.25364709]